bitfinex-derivatives/quotes_SOLF0:USTF0_20260208
["timestamp","ask_amount","ask_price","bid_price","bid_amount"]
[1770544270327,159.9874,87.592,87.47,4.33839189]
[1770544270328,46.34814111,87.529,87.47,4.33839189]
[1770544270531,46.34814111,87.499,87.441,1.9887078]
[1770544270726,46.34814111,87.499,87.432,45.15255598]
[1770544271026,46.34814111,87.513,87.48,4.33839189]
[1770544271633,46.34814111,87.539,87.49,4.33839189]
[1770544272030,46.34814111,87.539,87.5,4.33839189]
[1770544273039,46.34814111,87.539,87.49,4.33839189]
[1770544273442,46.34814111,87.539,87.484,45.15255598]
[1770544277032,46.34814111,87.539,87.47,43.47359087]
[1770544278336,56.63924111,87.539,87.465,10.2997]
[1770544279142,45.6539511,87.527,87.454,53.77459087]
[1770544279537,45.6539511,87.527,87.454,43.47359087]
[1770544280137,45.6539511,87.527,87.444,43.47359087]
[1770544280442,45.6539511,87.527,87.447,43.47359087]
[1770544280637,45.6539511,87.527,87.46,43.47359087]
[1770544281731,45.6539511,87.527,87.471,10.299]
[1770544281935,45.6539511,87.527,87.46,43.47359087]
[1770544282643,45.6539511,87.527,87.462,54.88359087]
[1770544282839,45.6539511,87.527,87.463,43.47359087]
[1770544284144,45.6539511,87.527,87.466,43.47359087]
[1770544285239,45.6539511,87.527,87.469,43.47359087]
[1770544287045,45.6539511,87.549,87.469,43.47359087]
[1770544287234,45.6539511,87.549,87.49,43.47359087]
[1770544287440,299.83856751,87.579,87.491,43.47359087]
[1770544287441,45.6539511,87.578,87.491,43.47359087]
[1770544287840,45.6539511,87.578,87.505,43.47359087]
[1770544288341,45.6539511,87.578,87.512,11.41]
[1770544288546,45.6539511,87.578,87.513,43.47359087]
[1770544288844,45.6539511,87.576,87.513,43.47359087]
[1770544289643,45.6539511,87.574,87.513,43.47359087]
[1770544289844,45.6539511,87.574,87.515,11.41]
[1770544290040,45.6539511,87.574,87.516,43.47359087]
[1770544291541,45.6539511,87.572,87.516,43.47359087]
[1770544291936,45.6539511,87.572,87.496,10.2961]
[1770544291937,45.6539511,87.569,87.483,43.47359087]
[1770544292247,11.63966907,87.57,87.483,43.47359087]
[1770544292248,45.6539511,87.543,87.483,43.47359087]
[1770544293151,11.63966907,87.57,87.483,43.47359087]
[1770544293152,45.6539511,87.539,87.483,43.47359087]
[1770544293450,45.6539511,87.539,87.465,43.47359087]
[1770544293749,45.6539511,87.524,87.465,43.47359087]
[1770544294352,45.6539511,87.524,87.449,43.47359087]
[1770544294942,45.6539511,87.512,87.449,43.47359087]
[1770544296849,42.72797873,87.506,87.449,43.47359087]
[1770544297551,53.02307873,87.505,87.449,43.47359087]
[1770544299850,42.72797873,87.526,87.449,43.47359087]
[1770544300153,42.72797873,87.526,87.467,45.42066411]
[1770544301547,42.72797873,87.526,87.455,45.42066411]
[1770544302247,42.72797873,87.526,87.457,45.42066411]
[1770544302448,42.72797873,87.541,87.471,45.42066411]
[1770544302649,42.72797873,87.555,87.476,45.42066411]
[1770544302854,42.72797873,87.555,87.496,45.42066411]
[1770544303852,42.72797873,87.555,87.498,45.42066411]
[1770544304245,42.72797873,87.555,87.482,10.2977]
[1770544304447,42.72797873,87.555,87.471,45.42066411]
[1770544304847,11.63966907,87.55,87.473,45.42066411]
[1770544305042,42.72797873,87.549,87.473,45.42066411]
[1770544307757,42.72797873,87.549,87.477,10.2983]
[1770544308159,42.72797873,87.547,87.473,45.42066411]
[1770544309756,42.72797873,87.545,87.473,45.42066411]
[1770544310554,11.63966907,87.55,87.473,45.42066411]
[1770544310555,42.72797873,87.541,87.473,45.42066411]
[1770544313756,42.72797873,87.539,87.473,45.42066411]
[1770544314466,42.72797873,87.529,87.455,44.68873236]
[1770544315960,42.72797873,87.529,87.472,45.42066411]
[1770544316661,42.72797873,87.529,87.473,45.34630954]
[1770544317461,47.07568045,87.52,87.473,45.34630954]
[1770544317662,4.34770172,87.51,87.473,45.34630954]
[1770544318662,47.07568045,87.52,87.473,45.34630954]
[1770544318862,42.72797873,87.517,87.473,45.34630954]
[1770544319666,42.72797873,87.515,87.473,45.34630954]
[1770544320762,42.72797873,87.53,87.473,45.34630954]
[1770544320969,42.72797873,87.549,87.491,44.17170521]
[1770544321274,299.83856751,87.579,87.491,44.17170521]
[1770544321275,42.72797873,87.539,87.491,44.17170521]
[1770544322871,47.07568045,87.52,87.475,44.205677]
[1770544323061,42.72797873,87.52,87.475,44.205677]
[1770544324173,42.72797873,87.533,87.481,42.89487671]
[1770544327976,42.72797873,87.533,87.49,47.69847295]
[1770544332274,42.72797873,87.533,87.49,43.35077123]
[1770544335480,42.72797873,87.533,87.49,47.69847295]
[1770544336070,42.72797873,87.533,87.49,43.35077123]
[1770544337176,42.72797873,87.533,87.49,47.69847295]
[1770544339779,299.83856751,87.579,87.481,11.41]
[1770544339780,41.54183542,87.578,87.511,39.11346614]
[1770544340079,41.54183542,87.578,87.521,39.11346614]
[1770544340977,41.54183542,87.559,87.509,39.11346614]
[1770544341176,41.54183542,87.571,87.521,39.11346614]
[1770544343478,41.54183542,87.569,87.511,39.11346614]
[1770544343777,4.34770172,87.57,87.511,39.11346614]
[1770544343778,41.54183542,87.559,87.511,39.11346614]
[1770544343975,41.54183542,87.559,87.521,39.11346614]
[1770544344981,41.54183542,87.579,87.521,39.11346614]
[1770544346284,41.54183542,87.575,87.521,39.11346614]
[1770544346583,41.54183542,87.569,87.521,39.11346614]
[1770544347177,41.54183542,87.559,87.521,39.11346614]
[1770544350785,41.54183542,87.579,87.521,39.11346614]
[1770544351988,41.54183542,87.579,87.523,39.11346614]
[1770544354581,41.54183542,87.579,87.532,39.11346614]
[1770544354782,41.54183542,87.579,87.55,4.34770172]
[1770544354985,41.54183542,87.579,87.54,43.46116786]
[1770544355186,41.54183542,87.579,87.55,4.34770172]
[1770544356791,38.52448916,87.609,87.55,43.59834159]
[1770544357687,38.52448916,87.599,87.55,39.25063987]
[1770544359795,38.52448916,87.599,87.55,43.59834159]
[1770544363901,38.52448916,87.638,87.581,37.90855405]
[1770544364196,38.52448916,87.629,87.581,37.90855405]
[1770544366198,38.52448916,87.659,87.601,37.58145526]
[1770544368302,38.52448916,87.657,87.601,37.58145526]
[1770544369005,38.52448916,87.639,87.601,37.58145526]
[1770544372614,38.52448916,87.651,87.601,37.58145526]
[1770544376800,38.52448916,87.651,87.603,35.64390044]
[1770544377709,38.52448916,87.651,87.605,35.46178206]
[1770544378607,38.52448916,87.651,87.607,34.81434962]
[1770544380513,178.98581398,87.711,87.554,20.5784]
[1770544380514,38.52448916,87.663,87.611,34.61426087]
[1770544380717,38.52448916,87.679,87.631,34.61426087]
[1770544381815,38.52448916,87.679,87.635,34.56034113]
[1770544384215,38.52448916,87.679,87.637,44.51370468]
[1770544384516,1.98516828,87.741,87.61,38.40013134]
[1770544384517,38.52448916,87.669,87.61,38.40013134]
[1770544384708,38.52448916,87.669,87.614,34.06604359]
[1770544385313,38.52448916,87.669,87.617,34.08035414]
[1770544385514,38.52448916,87.669,87.621,33.91421459]
[1770544390417,37.77131622,87.681,87.631,32.669918]
[1770544397318,36.99375379,87.679,87.631,32.669918]
[1770544397823,36.99375379,87.669,87.614,31.59342612]
[1770544398120,36.99375379,87.659,87.614,31.59342612]
[1770544403720,36.99375379,87.659,87.62,4.33408775]
[1770544404415,10.2745,87.681,87.631,31.31623544]
[1770544404616,41.32784154,87.68,87.624,31.31623544]
[1770544405826,41.32784154,87.68,87.56,160.0445]
[1770544405827,36.99375379,87.639,87.592,30.81461449]
[1770544406125,36.99375379,87.639,87.593,30.81461449]
[1770544406516,36.99375379,87.669,87.611,30.68811825]
[1770544408726,36.99375379,87.649,87.599,31.25520593]
[1770544409717,36.99375379,87.649,87.601,31.14333957]
[1770544423023,36.99375379,87.649,87.589,28.79948415]
[1770544423228,36.3590938,87.639,87.58,28.79948415]
[1770544424034,36.3590938,87.629,87.58,28.79948415]
[1770544424234,36.3590938,87.619,87.58,28.79948415]
[1770544425126,36.3590938,87.619,87.565,28.44513014]
[1770544425529,36.3590938,87.618,87.565,28.44513014]
[1770544426628,36.3590938,87.609,87.565,28.44513014]
[1770544426826,36.3590938,87.608,87.565,28.44513014]
[1770544428532,36.3590938,87.62,87.571,28.11692916]
[1770544431534,36.3590938,87.62,87.58,31.77186465]
[1770544431936,36.3590938,87.631,87.59,4.33408775]
[1770544433041,36.3590938,87.631,87.58,31.77186465]
[1770544435833,4.33408775,87.65,87.591,26.83220318]
[1770544436042,36.3590938,87.658,87.611,26.83220318]
[1770544437547,36.3590938,87.718,87.651,26.53866768]
[1770544437750,36.3590938,87.718,87.66,4.32836507]
[1770544439246,36.3590938,87.718,87.651,26.53866768]
[1770544439444,36.3590938,87.709,87.651,26.53866768]
[1770544439649,36.3590938,87.699,87.651,26.53866768]
[1770544441544,4.32836507,87.67,87.61,4.32836507]
[1770544441752,36.3590938,87.659,87.605,23.9964993]
[1770544444848,36.3590938,87.659,87.61,4.32836507]
[1770544445245,36.3590938,87.659,87.605,23.9964993]
[1770544448057,4.32836507,87.66,87.605,23.9964993]
[1770544448058,31.52324326,87.657,87.605,23.9964993]
[1770544448446,31.52324326,87.657,87.61,4.32836507]
[1770544448658,31.52324326,87.657,87.61,27.57509513]
[1770544450667,31.52324326,87.657,87.561,11.41]
[1770544450668,10.2745,87.68,87.631,23.37944678]
[1770544450965,31.52324326,87.684,87.631,23.37944678]
[1770544451761,31.52324326,87.684,87.64,4.32836507]
[1770544451962,31.52324326,87.684,87.631,23.37944678]
[1770544452467,31.52324326,87.679,87.631,23.37944678]
[1770544455472,31.52324326,87.679,87.633,22.77416238]
[1770544455670,31.08345477,87.692,87.64,26.98092532]
[1770544456466,31.08345477,87.679,87.582,23.32136608]
[1770544456673,31.08345477,87.639,87.582,23.32136608]
[1770544457366,31.08345477,87.629,87.567,23.21326718]
[1770544457566,31.08345477,87.619,87.567,23.21326718]
[1770544462577,31.08345477,87.619,87.568,22.89643862]
[1770544467668,31.08345477,87.619,87.57,22.54430629]
[1770544467872,31.08345477,87.647,87.57,22.54430629]
[1770544468678,31.08345477,87.647,87.585,10.2856]
[1770544468980,31.08345477,87.647,87.582,22.40826055]
[1770544471675,31.08345477,87.647,87.583,10.2858]
[1770544472377,31.08345477,87.647,87.583,32.8429435]
[1770544473081,31.08345477,87.647,87.589,10.2851]
[1770544475776,31.08345477,87.647,87.584,22.46506267]
[1770544476778,31.08345477,87.647,87.574,11.41]
[1770544476779,30.34621166,87.664,87.597,10.2841]
[1770544476983,30.34621166,87.664,87.598,21.84743515]
[1770544477182,30.34621166,87.664,87.604,21.84743515]
[1770544479384,34.68009581,87.66,87.604,21.84743515]
[1770544481083,34.68009581,87.66,87.611,21.43429137]
[1770544481284,34.68009581,87.66,87.62,4.33388415]
[1770544481285,30.34621166,87.66,87.62,4.33388415]
[1770544481590,302.90134037,87.708,87.601,10.2838]
[1770544481591,30.34621166,87.669,87.621,21.43429137]
[1770544486083,302.90134037,87.708,87.61,10.2826]
[1770544486084,30.34621166,87.668,87.61,4.33388415]
[1770544486284,30.34621166,87.659,87.609,20.93100417]
[1770544486981,30.34621166,87.658,87.609,20.93100417]
[1770544487382,30.34621166,87.649,87.597,20.76948416]
[1770544487581,30.34621166,87.639,87.597,20.76948416]
[1770544487978,30.34621166,87.655,87.601,21.20882465]
[1770544488576,30.34621166,87.655,87.61,4.33388415]
[1770544488783,30.34621166,87.655,87.611,21.12551355]
[1770544489385,30.34621166,87.667,87.62,4.33388415]
[1770544489586,30.34621166,87.667,87.621,21.04956315]
[1770544491379,30.34621166,87.682,87.63,4.33388415]
[1770544491585,30.34621166,87.682,87.631,20.5894238]
[1770544492392,30.34621166,87.682,87.64,4.33388415]
[1770544492590,30.34621166,87.695,87.64,24.84304245]
[1770544492792,30.34621166,87.708,87.651,20.5091583]
[1770544492994,30.34621166,87.708,87.66,4.33388415]
[1770544493193,30.34621166,87.708,87.661,20.51567671]
[1770544493393,30.34621166,87.705,87.661,20.51567671]
[1770544495291,30.34621166,87.718,87.67,4.33388415]
[1770544495500,30.34621166,87.718,87.67,20.0504602]
[1770544497189,30.34621166,87.699,87.653,20.75707461]
[1770544497491,9.14635806,87.768,87.653,20.75707461]
[1770544497797,30.34621166,87.719,87.661,20.68227312]
[1770544498189,30.34621166,87.719,87.664,20.13376213]
[1770544499292,30.34621166,87.709,87.664,20.13376213]
[1770544500294,30.34621166,87.709,87.65,20.04982305]
[1770544500490,9.14635806,87.764,87.501,551.15132593]
[1770544500491,30.34621166,87.689,87.63,24.30741447]
[1770544500792,30.34621166,87.679,87.63,19.97762969]
[1770544501493,30.34621166,87.679,87.63,30.25792969]
[1770544502998,30.34621166,87.679,87.63,24.30741447]
[1770544503391,30.34621166,87.679,87.64,4.32978478]
[1770544503588,30.34621166,87.679,87.63,24.30741447]
[1770544503792,30.34621166,87.679,87.582,45.67]
[1770544503793,30.34621166,87.705,87.651,19.99412776]
[1770544504495,30.34621166,87.705,87.66,24.25493414]
[1770544504700,30.34621166,87.729,87.67,24.25493414]
[1770544505398,30.34621166,87.729,87.67,19.92514936]
[1770544506490,30.34621166,87.729,87.672,19.50210422]
[1770544507901,30.34621166,87.729,87.677,10.2748]
[1770544508701,30.34621166,87.729,87.684,10.274]
[1770544511194,30.34621166,87.729,87.684,29.85992745]
[1770544511394,30.34621166,87.729,87.689,10.2734]
[1770544512002,29.17177493,87.75,87.693,19.42599287]
[1770544512690,29.17177493,87.75,87.698,10.2723]
[1770544515005,29.17177493,87.75,87.703,18.83089692]
[1770544515201,0.48336859,87.751,87.703,18.83089692]
[1770544515396,0.48336859,87.751,87.716,29.10109692]
[1770544515600,28.93574478,87.764,87.717,18.77245811]
[1770544516802,28.93574478,87.764,87.719,19.16315288]
[1770544517305,28.93574478,87.777,87.719,19.16315288]
[1770544518211,11.59069603,87.81,87.732,18.63084852]
[1770544518212,28.93574478,87.799,87.732,18.63084852]
[1770544519309,28.93574478,87.799,87.736,10.2679]
[1770544520005,28.93574478,87.799,87.742,10.2672]
[1770544520200,28.93574478,87.799,87.743,18.37145362]
[1770544521706,28.93574478,87.799,87.744,10.2669]
[1770544522912,28.93574478,87.799,87.748,10.2664]
[1770544523312,28.93574478,87.799,87.738,10.2677]
[1770544525011,10.2608,87.798,87.731,18.35190765]
[1770544525215,11.59069603,87.79,87.717,18.02330053]
[1770544525416,28.98882658,87.759,87.717,18.02330053]
[1770544525714,28.98882658,87.759,87.701,17.97186771]
[1770544526710,28.98882658,87.759,87.715,10.2703]
[1770544526918,28.98882658,87.759,87.701,17.97186771]
[1770544529018,28.98882658,87.757,87.687,18.80203691]
[1770544529617,28.98882658,87.755,87.687,18.80203691]
[1770544530212,28.98882658,87.755,87.661,18.59640239]
[1770544530617,11.58295666,87.74,87.661,18.59640239]
[1770544530919,28.98882658,87.739,87.661,18.59640239]
[1770544531115,28.98882658,87.737,87.667,18.55098623]
[1770544531624,11.58295666,87.78,87.653,18.50305321]
[1770544531625,28.98882658,87.718,87.653,18.50305321]
[1770544532711,28.98882658,87.714,87.653,18.50305321]
[1770544533719,28.98882658,87.712,87.653,18.50305321]
[1770544534814,28.98882658,87.71,87.653,18.50305321]
[1770544535819,10.2685,87.731,87.653,18.50305321]
[1770544536120,28.78914619,87.736,87.661,18.34969095]
[1770544536719,28.78914619,87.736,87.681,18.30432987]
[1770544539819,28.78914619,87.736,87.684,17.73359427]
[1770544540826,28.78914619,87.762,87.686,17.98993926]
[1770544541512,28.78914619,87.762,87.695,17.95062487]
[1770544541715,28.78914619,87.773,87.695,17.95062487]
[1770544542319,28.78914619,87.769,87.695,17.95062487]
[1770544543011,28.78914619,87.769,87.662,17.75163548]
[1770544543318,28.78914619,87.756,87.68,17.75163548]
[1770544543518,28.78914619,87.749,87.68,17.75163548]
[1770544544118,28.78914619,87.748,87.68,17.75163548]
[1770544545716,28.78914619,87.748,87.684,10.274]
[1770544545924,28.78914619,87.748,87.685,17.93912736]
[1770544547720,28.78914619,87.748,87.66,11.58295666]
[1770544547721,28.78914619,87.769,87.702,18.10798972]
[1770544548320,28.78914619,87.767,87.702,18.10798972]
[1770544549522,28.78914619,87.749,87.702,18.10798972]
[1770544549917,28.78914619,87.749,87.68,4.32510876]
[1770544550124,28.78914619,87.749,87.681,17.29999174]
[1770544550725,28.78914619,87.749,87.683,17.26174854]
[1770544550925,28.78914619,87.749,87.69,4.32510876]
[1770544551432,28.78914619,87.749,87.69,21.5900136]
[1770544551636,28.78914619,87.739,87.69,21.5900136]
[1770544553728,28.78914619,87.739,87.691,17.656518]
[1770544555531,28.78914619,87.729,87.673,17.48818783]
[1770544556738,28.78914619,87.729,87.681,17.36568314]
[1770544557544,28.78914619,87.729,87.661,17.33264512]
[1770544558335,28.78914619,87.729,87.67,4.32510876]
[1770544558535,28.78914619,87.729,87.67,21.76333175]
[1770544559141,28.78914619,87.729,87.683,17.44084087]
[1770544560833,28.78914619,87.729,87.685,10.2739]
[1770544561941,28.78914619,87.729,87.675,10.275]
[1770544563535,28.78914619,87.729,87.684,27.33221274]
[1770544563736,28.78914619,87.729,87.685,17.05821274]
[1770544564238,28.78914619,87.729,87.69,4.32658143]
[1770544564636,28.78914619,87.742,87.691,17.13702739]
[1770544564835,28.78914619,87.742,87.7,10.2721]
[1770544567041,28.78914619,87.742,87.691,17.13702739]
[1770544567042,28.78914619,87.742,87.708,10.2711]
[1770544571141,11.22434619,87.742,87.717,10.2702]
[1770544571353,10.2627,87.781,87.717,10.2702]
[1770544571936,11.58595612,87.79,87.717,10.2702]
[1770544572149,11.58595612,87.79,87.726,10.2691]
[1770544572644,11.58595612,87.79,87.715,27.47872786]
[1770544573238,27.39847097,87.789,87.715,27.47872786]
[1770544573751,27.39847097,87.789,87.717,10.2701]
[1770544573947,10.262,87.788,87.717,10.2701]
[1770544574145,28.25424054,87.787,87.715,27.47872786]
[1770544574651,28.25424054,87.787,87.718,10.27]
[1770544574852,28.25424054,87.787,87.719,27.72158423]
[1770544576757,28.25424054,87.786,87.719,27.72158423]
[1770544581553,28.25424054,87.783,87.719,27.72158423]
[1770544581758,1.98314893,87.821,87.693,27.72158423]
[1770544581759,28.25424054,87.769,87.693,27.72158423]
[1770544582259,28.25424054,87.753,87.695,27.72158423]
[1770544583061,28.25424054,87.789,87.707,27.72158423]
[1770544584157,28.25424054,87.789,87.737,27.72158423]
[1770544585367,28.25424054,87.789,87.74,32.04234811]
[1770544589564,28.25424054,87.789,87.743,27.72158423]
[1770544594473,32.57500442,87.78,87.743,27.72158423]
[1770544594668,28.25424054,87.78,87.743,27.72158423]
[1770544599373,10.2619,87.788,87.743,27.72158423]
[1770544599569,10.2619,87.788,87.69,34.22]
[1770544599570,27.22176021,87.798,87.751,27.96111204]
[1770544600172,27.22176021,87.824,87.753,27.96111204]
[1770544600370,27.22176021,87.819,87.761,27.96111204]
[1770544601372,27.22176021,87.819,87.763,27.96111204]
[1770544602773,27.22176021,87.819,87.766,27.96111204]
[1770544603778,27.22176021,87.819,87.77,27.96111204]
[1770544604480,27.22176021,87.809,87.758,27.96111204]
[1770544605681,27.22176021,87.809,87.76,10.2651]
[1770544605976,27.22176021,87.799,87.741,27.96111204]
[1770544606181,27.22176021,87.789,87.741,27.96111204]
[1770544606683,27.22176021,87.789,87.744,10.267]
[1770544607076,27.22176021,87.789,87.744,38.22811204]
[1770544607877,27.22176021,87.789,87.745,27.96111204]
[1770544609587,27.22176021,87.789,87.749,27.96111204]
[1770544610282,27.22176021,87.803,87.755,27.96111204]
[1770544611384,27.22176021,87.799,87.755,27.96111204]
[1770544612083,27.22176021,87.789,87.743,39.36111204]
[1770544612287,4.32076388,87.78,87.743,27.96111204]
[1770544612483,27.22176021,87.789,87.743,27.96111204]
[1770544613192,4.32076388,87.78,87.743,27.96111204]
[1770544614387,27.22176021,87.789,87.743,27.96111204]
[1770544614584,27.22176021,87.789,87.748,10.2665]
[1770544614789,27.22176021,87.789,87.749,27.96111204]
[1770544615691,27.22176021,87.789,87.75,10.2663]
[1770544618577,31.54252409,87.78,87.75,10.2663]
[1770544618982,31.54252409,87.79,87.735,27.96111204]
[1770544619187,4.32076388,87.77,87.721,27.96111204]
[1770544619380,4.32297621,87.77,87.721,27.96111204]
[1770544619890,31.54473642,87.77,87.721,27.96111204]
[1770544620089,27.22176021,87.77,87.727,10.269]
[1770544620285,27.22176021,87.77,87.728,27.96111204]
[1770544620590,27.22176021,87.759,87.717,10.2701]
[1770544620794,4.32297621,87.75,87.715,27.96111204]
[1770544621488,31.54473642,87.75,87.715,27.96111204]
[1770544621686,31.54473642,87.75,87.69,4.32297621]
[1770544621687,31.54473642,87.75,87.695,27.96111204]
[1770544621888,27.22176021,87.739,87.695,27.96111204]
[1770544622091,27.22176021,87.719,87.671,27.96111204]
[1770544622292,4.32297621,87.71,87.671,27.96111204]
[1770544627492,27.22176021,87.719,87.671,27.96111204]
[1770544628198,4.32297621,87.71,87.673,26.61993364]
[1770544628400,27.22176021,87.719,87.673,26.61993364]
[1770544629198,10.268,87.736,87.624,34.22]
[1770544629199,27.83858127,87.709,87.662,26.61993364]
[1770544630098,27.83858127,87.709,87.664,26.61993364]
[1770544631806,27.83858127,87.709,87.671,10.2756]
[1770544631996,27.83858127,87.709,87.664,26.61993364]
[1770544635615,27.83858127,87.709,87.65,31.8004145]
[1770544636311,27.83858127,87.709,87.653,27.47743829]
[1770544637710,27.83858127,87.709,87.656,27.47743829]
[1770544638516,27.83858127,87.709,87.65,4.32297621]
[1770544638517,27.83858127,87.709,87.644,27.47743829]
[1770544638713,26.9116391,87.689,87.644,27.47743829]
[1770544639911,26.9116391,87.679,87.632,27.47743829]
[1770544641720,4.32297621,87.68,87.618,11.4]
[1770544641721,26.9116391,87.677,87.618,11.4]
[1770544641924,26.9116391,87.677,87.62,27.47743829]
[1770544642614,26.9116391,87.669,87.62,27.47743829]
[1770544643223,26.9116391,87.659,87.62,27.47743829]
[1770544645423,26.9116391,87.659,87.607,27.47743829]
[1770544646014,26.9116391,87.658,87.607,27.47743829]
[1770544648428,26.9116391,87.656,87.607,27.47743829]
[1770544649226,20.5401,87.719,87.591,27.47743829]
[1770544649227,26.9116391,87.649,87.591,27.47743829]
[1770544649621,26.9116391,87.639,87.591,27.47743829]
[1770544651514,26.9116391,87.637,87.591,27.47743829]
[1770544653130,26.9116391,87.629,87.571,27.47743829]
[1770544653324,4.32297621,87.64,87.581,27.47743829]
[1770544653523,26.9116391,87.642,87.591,27.47743829]
[1770544655222,34.22,87.714,87.611,27.47743829]
[1770544655223,26.9116391,87.661,87.611,27.47743829]
[1770544655826,28.72015897,87.659,87.599,27.75534126]
[1770544656021,28.72015897,87.659,87.601,27.75534126]
[1770544656333,28.72015897,87.659,87.611,27.75534126]
[1770544657926,28.72015897,87.658,87.611,27.75534126]
[1770544660635,28.72015897,87.657,87.611,27.75534126]
[1770544663027,28.72015897,87.657,87.621,27.75534126]
[1770544663532,4.32297621,87.68,87.621,27.75534126]
[1770544663727,28.72015897,87.679,87.621,27.75534126]
[1770544664830,28.72015897,87.676,87.621,27.75534126]
[1770544665834,28.72015897,87.671,87.621,27.75534126]
[1770544666035,28.72015897,87.659,87.621,27.75534126]
[1770544666431,28.72015897,87.649,87.609,27.75534126]
[1770544667736,10.2783,87.648,87.609,27.75534126]
[1770544667943,28.72015897,87.649,87.611,27.75534126]
[1770544669030,10.2772,87.657,87.62,4.32297621]
[1770544669237,28.72015897,87.673,87.621,27.75534126]
[1770544669532,10.2772,87.658,87.621,27.75534126]
[1770544669735,28.72015897,87.673,87.621,27.75534126]
[1770544670636,10.2761,87.667,87.621,27.75534126]
[1770544671032,38.99625897,87.667,87.621,27.75534126]
[1770544671736,28.72015897,87.667,87.621,27.75534126]
[1770544674444,4.32297621,87.68,87.626,10.2808]
[1770544674645,28.72015897,87.685,87.631,27.75534126]
[1770544676341,4.32297621,87.68,87.631,27.75534126]
[1770544676546,28.72015897,87.679,87.631,27.75534126]
[1770544678345,28.72015897,87.676,87.631,27.75534126]
[1770544678743,28.72015897,87.659,87.613,11.4]
[1770544678941,28.72015897,87.649,87.6,27.75534126]
[1770544679142,28.72015897,87.649,87.6,32.07831747]
[1770544679446,28.72015897,87.649,87.611,27.75534126]
[1770544683238,10.2783,87.648,87.611,27.75534126]
[1770544683546,28.72015897,87.647,87.611,27.75534126]
[1770544684244,10.2786,87.646,87.611,27.75534126]
[1770544684647,10.46866805,87.694,87.611,27.75534126]
[1770544684648,10.2792,87.64,87.611,27.75534126]
[1770544685045,28.72015897,87.645,87.611,27.75534126]
[1770544685250,10.2789,87.643,87.611,27.75534126]
[1770544687651,28.72015897,87.645,87.611,27.75534126]
[1770544690652,28.72015897,87.645,87.601,27.53174112]
[1770544699564,28.08272226,87.655,87.601,27.53174112]
[1770544701248,28.08272226,87.655,87.611,28.9373624]
[1770544702649,28.08272226,87.655,87.613,28.9373624]
[1770544706061,28.08272226,87.649,87.613,28.9373624]
[1770544708355,28.08272226,87.649,87.59,4.33424809]
[1770544708561,28.08272226,87.649,87.591,28.9373624]
[1770544713659,28.08272226,87.648,87.591,28.9373624]
[1770544714457,10.2772,87.658,87.601,28.9373624]
[1770544714767,28.08272226,87.657,87.611,28.9373624]
[1770544733581,10.2773,87.656,87.611,28.9373624]
[1770544733784,27.64044649,87.655,87.611,28.9373624]
[1770544735783,27.64044649,87.653,87.611,28.9373624]
[1770544736986,27.64044649,87.675,87.621,27.15305664]
[1770544738784,27.64044649,87.659,87.621,27.15305664]
[1770544739798,27.64044649,87.657,87.621,27.15305664]
[1770544742787,4.33424809,87.65,87.621,27.15305664]
[1770544743486,27.64044649,87.655,87.621,27.15305664]
[1770544745995,27.10148717,87.648,87.591,29.23663589]
[1770544746994,10.2785,87.647,87.591,29.23663589]
[1770544747298,27.10148717,87.646,87.591,29.23663589]
[1770544747594,10.2787,87.645,87.591,29.23663589]
[1770544747791,27.10148717,87.644,87.591,29.23663589]
[1770544747998,27.10148717,87.639,87.591,29.23663589]
[1770544748800,27.10148717,87.638,87.591,29.23663589]
[1770544749199,10.2793,87.639,87.591,29.23663589]
[1770544749397,27.10148717,87.648,87.593,29.23663589]
[1770544750397,27.10148717,87.648,87.601,29.23663589]
[1770544754399,32.47000208,87.68,87.621,26.80738007]
[1770544756296,32.47000208,87.68,87.622,26.80738007]
[1770544756506,32.47000208,87.68,87.58,35.45513213]
[1770544756507,28.13508,87.68,87.641,26.80738007]
[1770544756905,28.13508,87.699,87.641,26.80738007]
[1770544757618,28.13508,87.699,87.651,26.80738007]
[1770544762417,28.13508,87.699,87.661,26.80738007]
[1770544763818,28.13508,87.719,87.661,26.80738007]
[1770544768715,28.13508,87.709,87.645,10.2785]
[1770544768912,28.13508,87.679,87.627,26.80738007]
[1770544769117,28.13508,87.669,87.627,26.80738007]
[1770544772822,28.13508,87.669,87.621,26.80738007]
[1770544775920,29.26712058,87.738,87.631,27.95535477]
[1770544776122,29.26712058,87.719,87.661,27.95535477]
[1770544778028,29.26712058,87.709,87.65,42.56827685]
[1770544778324,29.26712058,87.709,87.651,27.95535477]
[1770544778824,29.26712058,87.699,87.651,27.95535477]
[1770544784628,29.26712058,87.699,87.64,10.2791]
[1770544784629,29.26712058,87.679,87.64,27.95535477]
[1770544785823,29.26712058,87.699,87.64,32.29027685]
[1770544786934,29.26712058,87.699,87.592,28.45983771]
[1770544786935,29.26712058,87.689,87.624,27.95535477]
[1770544787134,29.26712058,87.689,87.63,32.29027685]
[1770544789334,29.26712058,87.689,87.632,27.95535477]
[1770544791730,29.26712058,87.689,87.634,27.95535477]
[1770544793941,29.26712058,87.669,87.62,27.95535477]